bitfinex/quotes_ETHUSD_20240602
["timestamp","ask_amount","ask_price","bid_price","bid_amount"]
[1717316731543,3.45366026,3792.7,3791.4,2.3982]
[1717316731743,2.63698,3792.3,3791.4,2.3982]
[1717316732068,3.4621505,3792.3,3791.8,0.555]
[1717316732267,2.63706,3792.1,3791.8,0.555]
[1717316732435,0.05027813,3792.0,3791.8,0.555]
[1717316749761,2.63685,3792.4,3791.8,0.874241]
[1717316749973,2.63685,3792.4,3792.2,0.555]
[1717316757301,3.4620205,3792.4,3792.2,0.555]
[1717316759096,2.63685,3792.4,3792.2,0.555]
[1717316759412,0.8251705,3792.6,3792.3,2.409]
[1717316759600,8.1451705,3792.7,3792.4,0.555]
[1717316759800,8.1451705,3792.7,3792.6,0.555]
[1717316759998,5.32010802,3792.9,3792.6,0.555]
[1717316759999,3.4617405,3792.9,3792.6,0.555]
[1717316760199,0.8251705,3792.8,3792.4,0.32604]
[1717316760387,0.8251705,3793.1,3792.7,0.555]
[1717316760786,0.8251705,3793.0,3792.7,0.555]
[1717316761029,0.8251705,3793.0,3792.9,0.555]
[1717316762820,1.10256026,3793.1,3792.9,0.555]
[1717316763190,1.10256026,3793.1,3793.0,2.3435]
[1717316763401,1.10256026,3793.1,3793.0,2.63335]
[1717316763601,0.82633508,3793.2,3793.0,2.63335]
[1717316763797,0.82633508,3793.2,3793.1,0.555]
[1717316764030,1.10178011,3793.3,3793.1,0.555]
[1717316764230,1.10178011,3793.3,3793.2,0.555]
[1717316764430,1.37177685,3793.4,3793.2,0.555]
[1717316764946,1.10199052,3793.3,3793.2,0.555]
[1717316765107,1.10199052,3793.3,3793.2,0.84485]
[1717316765527,0.8268407,3793.3,3793.2,0.84485]
[1717316766380,0.8268407,3793.3,3793.2,3.48114]
[1717316766820,1.10199052,3793.5,3793.2,3.48114]
[1717316766821,0.8268407,3793.5,3793.2,3.48114]
[1717316767020,0.8268407,3793.5,3793.4,5.53465]
[1717316767220,1.37177685,3793.8,3793.4,5.53465]
[1717316767221,0.8268407,3793.8,3793.4,5.53465]
[1717316767525,0.8268407,3793.7,3793.4,4.97965]
[1717316767716,0.8268407,3793.6,3793.4,4.97965]
[1717316767923,0.8268407,3793.6,3793.5,1.1401964]
[1717316768234,0.8268407,3793.7,3793.5,1.1401964]
[1717316768431,0.8268407,3793.7,3793.6,0.555]
[1717316768645,0.8268407,3793.8,3793.6,0.555]
[1717316768827,0.8268407,3793.8,3793.7,0.555]
[1717316769581,1.37852509,3794.1,3793.8,2.63587]
[1717316769582,0.8268407,3794.1,3793.8,2.63587]
[1717316769720,0.8268407,3794.1,3793.9,0.555]
[1717316769918,0.8268407,3794.0,3793.9,0.555]
[1717316770157,0.8268407,3794.1,3793.9,0.93528546]
[1717316770353,0.8268407,3794.1,3794.0,0.555]
[1717316770536,0.8268407,3794.3,3794.0,0.555]
[1717316770748,0.8268407,3794.3,3794.2,0.555]
[1717316771384,0.8268407,3794.4,3794.2,0.555]
[1717316771685,1.10199052,3794.5,3794.3,0.555]
[1717316772324,0.82600166,3794.4,3794.3,0.555]
[1717316772637,0.82600166,3794.5,3794.3,0.555]
[1717316772879,0.82600166,3794.4,3794.1,0.555]
[1717316773030,2.351,3794.5,3794.1,0.555]
[1717316773031,0.82600166,3794.3,3794.1,0.555]
[1717316773223,3.45299052,3794.5,3794.1,0.555]
[1717316773224,0.82600166,3794.4,3794.1,0.555]
[1717316773469,0.82600166,3794.4,3794.3,0.555]
[1717316773673,0.82600166,3794.5,3794.1,0.319087]
[1717316773977,0.82600166,3794.5,3794.3,0.555]
[1717316774452,0.82600166,3794.6,3794.3,0.555]
[1717316774626,0.04982018,3794.4,3794.3,0.555]
[1717316774831,0.82600166,3794.5,3794.1,0.319087]
[1717316775038,0.04982018,3794.4,3794.3,0.555]
[1717316775479,0.04982018,3794.4,3794.3,2.8985]
[1717316775630,0.82600166,3794.8,3794.3,3.4838247]
[1717316775969,0.82600166,3794.8,3794.7,0.555]
[1717316776422,0.82600166,3794.9,3794.7,0.555]
[1717316777472,3.46109166,3795.0,3794.7,0.555]
[1717316779376,0.82600166,3795.0,3794.9,0.555]
[1717316779537,7.32,3795.5,3794.9,0.874022]
[1717316779538,0.82600166,3795.1,3794.9,0.874022]
[1717316779858,0.82600166,3795.4,3794.9,0.319022]
[1717316780082,0.82600166,3795.4,3794.7,2.63522]
[1717316780224,3.12340166,3795.4,3794.9,0.555]
[1717316780424,3.12340166,3795.4,3795.1,0.555]
[1717316782353,2.2974,3795.4,3795.1,0.555]
[1717316784530,3.46072166,3795.5,3795.1,0.555]
[1717316784744,0.82600166,3795.5,3795.3,0.555]
[1717316784977,4.01107453,3795.9,3795.3,0.555]
[1717316784978,0.82600166,3795.8,3795.3,0.555]
[1717316785490,0.82600166,3795.8,3795.5,0.555]
[1717316785652,3.46048166,3795.9,3795.2,2.4533]
[1717316785840,3.46048166,3795.9,3795.4,0.555]
[1717316786244,3.46048166,3795.9,3795.2,2.4533]
[1717316786245,2.63448,3795.9,3795.3,0.555]
[1717316786681,3.46048166,3795.9,3795.3,0.555]
[1717316787477,2.63448,3795.9,3795.3,0.555]
[1717316789187,2.63459,3795.7,3794.8,2.4533]
[1717316789389,2.2974,3795.9,3795.4,0.555]
[1717316789562,0.05061582,3795.6,3795.4,0.555]
[1717316789881,2.2974,3795.9,3795.4,0.555]
[1717316790054,0.05065897,3795.5,3795.4,0.555]
[1717316790258,2.2974,3795.9,3795.4,0.555]
[1717316790459,0.05065897,3795.5,3795.4,0.555]
[1717316790965,2.2974,3795.9,3795.4,0.555]
[1717316791286,0.05065897,3795.5,3795.4,0.555]
[1717316791452,2.2974,3795.9,3795.4,0.555]
[1717316791653,0.05065897,3795.5,3795.4,0.555]
[1717316792188,2.2974,3795.9,3795.4,0.555]
[1717316792478,0.05065897,3795.5,3795.4,0.555]
[1717316792687,2.2974,3795.9,3795.4,0.555]
[1717316792884,0.05065897,3795.5,3795.4,0.555]
[1717316793058,2.2974,3795.9,3795.4,0.555]
[1717316793263,0.05065897,3795.5,3795.4,0.555]
[1717316793473,2.2974,3795.9,3795.4,0.555]
[1717316793649,0.05065897,3795.5,3795.4,0.555]
[1717316793846,2.2974,3795.9,3795.4,0.555]
[1717316794075,0.05065091,3795.5,3795.4,0.555]
[1717316794273,2.2974,3795.9,3795.4,0.555]
[1717316794752,0.05069842,3795.8,3795.4,0.555]
[1717316795677,0.05069842,3795.8,3795.6,0.555]
[1717316796053,4.21660671,3796.0,3795.6,0.555]
[1717316796287,0.05082694,3795.7,3795.6,0.555]
[1717316796487,4.21660671,3796.0,3795.6,0.85583]
[1717316796691,0.05082694,3795.7,3795.6,0.555]
[1717316797299,4.21660671,3796.0,3795.6,0.555]
[1717316797797,2.34828368,3795.9,3795.4,0.555]
[1717316798791,4.50009568,3795.9,3795.4,0.555]
[1717316799094,3.93054039,3795.9,3795.4,0.555]
[1717316799493,3.93054039,3795.9,3795.8,0.555]
[1717316799494,0.05088368,3795.9,3795.8,0.555]
[1717316799798,1.58225671,3796.2,3795.8,0.555]
[1717316800015,0.05121125,3795.9,3795.8,0.555]
[1717316800167,1.58197239,3796.1,3795.8,0.555]
[1717316800369,0.05123246,3796.0,3795.8,0.555]
[1717316802789,2.37993246,3796.0,3795.3,2.63483]
[1717316802972,2.37993246,3796.0,3795.6,0.555]
[1717316804694,2.63443,3795.9,3795.6,0.555]
[1717316804860,0.56951965,3795.8,3795.6,0.555]
[1717316805060,0.62075411,3795.8,3795.6,0.555]
[1717316805383,0.05123446,3795.8,3795.6,0.555]
[1717316809386,0.87723612,3795.8,3795.6,0.555]
[1717316809584,0.05123446,3795.8,3795.7,2.3795]
[1717316809789,0.05123446,3795.8,3795.7,2.7230933]
[1717316810479,0.87723612,3795.8,3795.7,2.7230933]
[1717316810887,0.05123446,3795.8,3795.7,2.7230933]
[1717316811268,0.87723612,3795.8,3795.7,2.7230933]
[1717316811464,0.05123446,3795.8,3795.7,2.7230933]
[1717316811667,0.87774798,3795.8,3795.7,2.7230933]
[1717316812514,0.05123446,3795.8,3795.7,2.7230933]
[1717316812869,0.05123446,3795.8,3795.7,0.3435933]
[1717316813884,1.15322498,3795.8,3795.7,0.3435933]
[1717316814222,0.05123446,3795.8,3795.7,0.3435933]
[1717316814371,1.15322498,3795.8,3795.7,0.3435933]
[1717316815686,0.05123446,3795.8,3795.7,0.3435933]
[1717316815886,1.42827754,3795.8,3795.7,0.8985933]
[1717316816301,0.05123446,3795.8,3795.7,0.8985933]
[1717316816809,1.15434958,3795.8,3795.7,0.3435933]
[1717316817004,1.15434958,3795.8,3795.7,0.8985933]
[1717316817174,1.43012837,3795.8,3795.7,0.8985933]
[1717316817370,0.05123446,3795.8,3795.7,0.8985933]
[1717316819394,1.43012837,3795.8,3795.7,0.8985933]
[1717316819620,0.05123446,3795.8,3795.7,0.8985933]
[1717316819844,0.05123446,3795.8,3795.5,2.63464]
[1717316819999,0.05123446,3795.8,3795.7,0.555]
[1717316820307,1.43012837,3795.8,3795.7,0.555]
[1717316823131,0.05123446,3795.8,3795.7,0.555]
[1717316823476,0.56949544,3796.0,3795.7,0.555]
[1717316823676,0.05125718,3795.8,3795.7,0.555]
[1717316823909,3.23664102,3796.1,3795.7,0.555]
[1717316824113,0.05125718,3795.8,3795.7,0.555]
[1717316824278,0.56949441,3796.0,3795.7,0.555]
[1717316824484,0.05125718,3795.8,3795.7,0.555]
[1717316824673,1.65467269,3796.0,3795.7,0.555]
[1717316824876,0.05126592,3795.8,3795.7,0.555]
[1717316825100,1.65467269,3796.0,3795.7,0.555]
[1717316825312,0.05126592,3795.8,3795.7,0.555]
[1717316825519,2.22417207,3795.9,3795.7,0.555]
[1717316825728,0.05126592,3795.8,3795.7,0.555]
[1717316827519,1.70593861,3795.8,3795.7,0.555]
[1717316829830,0.05126592,3795.8,3795.7,0.555]
[1717316830432,1.70593861,3795.8,3795.7,0.555]
[1717316832347,1.70969732,3795.8,3795.7,0.555]
[1717316832722,0.05126592,3795.8,3795.7,0.555]
[1717316833045,1.70969732,3795.8,3795.7,0.555]
[1717316834351,1.70969732,3795.8,3795.7,0.873975]
[1717316834545,0.05126592,3795.8,3795.7,3.204275]
[1717316834846,4.56934777,3796.3,3795.7,3.204275]
[1717316834847,1.65874095,3795.9,3795.7,3.204275]
[1717316835030,1.65874095,3795.9,3795.8,0.555]
[1717316835746,1.58196833,3796.1,3795.8,0.555]
[1717316835914,0.56948992,3796.0,3795.7,2.3303]
[1717316836115,1.65895633,3795.8,3795.7,2.3303]
[1717316836311,1.65895633,3795.8,3795.7,2.8853]
[1717316836515,1.65895633,3795.8,3795.7,2.882286]
[1717316836813,1.65895633,3795.8,3795.7,3.437286]
[1717316837025,1.65895633,3796.0,3795.7,3.437286]
[1717316837236,1.58196833,3796.2,3795.9,0.555]
[1717316838043,2.1514429,3796.1,3795.9,0.555]
[1717316838254,1.58196833,3796.1,3795.9,0.555]
[1717316839357,0.56947688,3796.0,3795.9,0.6071846]
[1717316839535,0.56947688,3796.0,3795.9,0.555]
[1717316839853,1.65925797,3796.1,3795.9,0.555]
[1717316840051,2.362,3796.3,3795.9,0.555]
[1717316840052,1.65925797,3796.0,3795.9,0.555]
[1717316840252,1.58196833,3796.1,3795.9,0.555]
[1717316840461,2.15144452,3796.1,3795.9,0.555]
[1717316840753,2.15144864,3796.1,3795.9,0.555]
[1717316840978,1.58196833,3796.1,3795.9,0.555]
[1717316841158,2.15144818,3796.1,3795.9,0.555]
[1717316841456,3.5171661,3796.2,3795.9,0.555]
[1717316841757,0.56947863,3796.1,3795.9,0.555]
[1717316843673,0.56947966,3796.1,3795.9,0.555]
[1717316844769,0.56947966,3796.1,3795.6,5.09356]
[1717316844982,1.65957205,3795.8,3795.6,2.90263883]
[1717316845282,1.65957205,3795.8,3795.7,0.555]
[1717316847681,1.65957205,3795.9,3795.7,0.555]
[1717316847847,1.65957205,3795.9,3795.8,0.555]
[1717316848044,3.51796992,3796.2,3795.8,0.555]
[1717316848383,0.56947792,3796.1,3796.0,0.555]
[1717316848787,4.08744784,3796.1,3796.0,0.555]
[1717316849085,2.15136588,3796.1,3796.0,0.555]
[1717316849241,0.56947792,3796.1,3796.0,0.555]
[1717316849438,0.62079979,3796.1,3796.0,0.555]
[1717316852256,0.05132187,3796.1,3796.0,0.555]
[1717316855179,0.62079303,3796.1,3796.0,0.555]
[1717316855494,0.05132187,3796.1,3796.0,0.555]
[1717316855651,0.05132187,3796.1,3796.0,0.87394]
[1717316855853,1.71097797,3796.1,3796.0,0.87394]
[1717316856277,0.05132187,3796.1,3796.0,0.87394]
[1717316859078,1.6596561,3796.2,3796.0,0.87394]
[1717316859283,1.6596561,3796.2,3796.1,0.555]
[1717316859588,1.6596561,3796.3,3796.1,0.596734]
[1717316859890,1.6596561,3796.5,3796.2,0.555]
[1717316860066,6.15180992,3796.8,3796.1,0.596734]
[1717316860067,1.6596561,3796.3,3796.1,0.596734]
[1717316860263,1.6596561,3796.3,3796.2,0.555]
[1717316860472,1.6596561,3796.3,3796.2,1.2114074]
[1717316861357,1.7093327,3796.3,3796.2,1.2114074]
[1717316864199,1.7093327,3796.3,3796.2,0.555]
[1717316865994,0.0496766,3796.3,3796.2,0.555]
[1717316869390,2.4302766,3796.3,3796.2,0.555]
[1717316869723,4.0899327,3796.3,3796.2,0.555]
[1717316870010,0.0496766,3796.3,3796.2,0.555]
[1717316872687,0.0496766,3796.3,3795.6,2.6346]
[1717316872891,1.70753728,3796.3,3796.2,0.555]
[1717316875008,0.0496766,3796.3,3796.2,0.555]
[1717316875910,1.65786068,3796.5,3796.2,0.555]
[1717316876120,1.65786068,3796.5,3796.4,0.555]
[1717316876528,2.63398,3796.6,3796.4,0.555]
[1717316878337,1.65801885,3796.5,3796.4,0.555]
[1717316878635,2.63398,3796.6,3796.4,0.555]
[1717316879030,1.65808269,3796.5,3796.4,0.555]
[1717316879420,1.70412113,3796.5,3796.4,0.555]
[1717316879837,0.04603844,3796.5,3796.4,0.555]
[1717316880150,1.70412547,3796.5,3796.4,0.555]
[1717316884408,0.04603844,3796.5,3796.4,0.555]
[1717316884617,1.70411142,3796.5,3796.4,0.555]
[1717316885013,1.70411142,3796.5,3796.0,0.544363]
[1717316885234,1.38172853,3796.1,3795.8,2.63444]
[1717316885456,1.10542306,3795.9,3795.8,2.63444]
[1717316885613,1.15133429,3795.9,3795.8,3.18944]
[1717316888919,0.04591123,3795.9,3795.8,3.18944]
[1717316889121,0.04591123,3795.9,3795.8,3.742884]
[1717316889449,1.15133429,3795.9,3795.8,3.742884]
[1717316890029,0.04591123,3795.9,3795.8,6.087884]
[1717316890939,1.15133429,3795.9,3795.8,6.087884]
[1717316893355,1.15133429,3795.9,3795.8,3.742884]
[1717316894060,0.04591123,3795.9,3795.8,3.742884]
[1717316895239,1.42775923,3795.9,3795.8,3.742884]
[1717316896324,0.04591123,3795.9,3795.8,3.742884]
[1717316898482,1.1520626,3795.9,3795.8,3.742884]
[1717316898837,0.04591123,3795.9,3795.8,3.742884]
[1717316902647,0.04591123,3795.9,3795.8,3.187884]
[1717316902848,1.42849342,3795.9,3795.8,3.742884]
[1717316903628,0.04591123,3795.9,3795.8,3.742884]
[1717316905178,1.15244376,3795.9,3795.8,3.742884]
[1717316905332,1.10653253,3795.9,3795.8,3.742884]
[1717316905669,1.15252234,3795.9,3795.8,3.742884]
[1717316907369,0.04598981,3795.9,3795.8,3.742884]
[1717316910674,0.04598981,3795.9,3795.8,6.202084]
[1717316910877,0.87568032,3795.9,3795.8,6.202084]
[1717316911082,0.04598981,3795.9,3795.8,6.202084]
[1717316911500,1.15252234,3795.9,3795.8,6.202084]
[1717316912724,0.04598981,3795.9,3795.8,6.202084]
[1717316912874,0.87564067,3795.9,3795.8,6.202084]
[1717316913371,0.04598981,3795.9,3795.8,6.202084]
[1717316914010,1.10653253,3796.0,3795.8,6.202084]
[1717316914220,1.10653253,3796.1,3796.0,2.63435]
[1717316914517,1.10653253,3796.1,3796.0,3.18935]
[1717316914815,1.10653253,3796.2,3796.0,3.18935]
[1717316915000,1.10653253,3796.2,3796.1,0.555]
[1717316915174,1.10653253,3796.2,3796.1,1.23722024]
[1717316915606,1.10653253,3796.2,3796.1,6.69642024]
[1717316915811,0.82946809,3796.3,3796.2,2.63421]
[1717316915972,0.82946809,3796.3,3796.2,3.18921]
[1717316916175,0.82946809,3796.3,3796.2,4.12227302]
[1717316916386,0.82946809,3796.4,3796.2,7.12227302]
[1717316916582,0.82946809,3796.4,3796.3,0.555]
[1717316917096,0.82946809,3796.4,3796.3,3.555]
[1717316918428,0.82946809,3796.5,3796.4,2.63407]
[1717316918626,0.82946809,3796.5,3796.4,4.47884633]
[1717316918795,0.82946809,3796.6,3796.4,4.47884633]
[1717316918984,0.82946809,3796.6,3796.5,0.555]
[1717316919191,1.10653253,3796.7,3796.6,2.63393]
[1717316920287,2.4483,3796.7,3796.6,2.63393]
[1717316920492,3.55483253,3796.7,3796.6,3.18893]
[1717316920918,2.4483,3796.7,3796.6,3.18893]
[1717316921126,1.38270347,3796.8,3796.6,3.18893]
[1717316921397,1.10482361,3796.7,3796.6,3.18893]
[1717316922009,1.10482361,3796.7,3796.6,3.807823]
[1717316922239,1.10482361,3796.8,3796.6,3.807823]
[1717316922549,1.10482361,3796.8,3796.7,0.555]
[1717316922830,1.38270347,3796.9,3796.7,0.555]
[1717316923000,1.38270347,3796.9,3796.8,2.63379]
[1717316923201,1.10453003,3796.9,3796.8,2.63379]
[1717316923715,2.4483,3796.9,3796.8,2.63379]
[1717316924490,2.49296361,3796.9,3796.8,2.63379]
[1717316924723,3.87566708,3796.9,3796.8,2.63379]
[1717316928688,1.42736708,3796.9,3796.8,2.63379]
[1717316929394,0.04466361,3796.9,3796.8,2.63379]
[1717316930098,0.04466361,3796.9,3796.8,2.952669]
[1717316934034,1.14868962,3796.9,3796.8,2.952669]
[1717316936600,1.14868962,3796.9,3796.8,0.555]
[1717316936802,2.49296361,3796.9,3796.8,0.555]
[1717316938335,3.87566708,3796.9,3796.8,0.555]
[1717316939040,2.49296361,3796.9,3796.8,0.555]
[1717316939643,0.04466361,3796.9,3796.8,0.555]
[1717316939806,0.04466361,3796.9,3796.8,0.873898]
[1717316940927,0.04466361,3796.9,3796.8,0.555]
[1717316941328,1.42736708,3796.9,3796.8,0.555]
[1717316941531,0.04466361,3796.9,3796.8,0.555]
[1717316942644,0.04466361,3796.9,3796.5,2.63398]
[1717316942844,1.1042702,3796.7,3796.5,2.63398]
[1717316943059,1.1042702,3796.7,3796.6,0.555]
[1717316944344,1.1042702,3796.7,3796.6,1.173898]
[1717316944552,1.1042702,3796.8,3796.6,1.173898]
[1717316944752,0.82832506,3796.8,3796.7,3.18886]
[1717316944952,0.82832506,3796.8,3796.7,3.5696358]
[1717316945259,1.38270347,3796.9,3796.7,3.5696358]
[1717316947359,0.82843207,3796.8,3796.7,0.9357758]
[1717316947654,0.82843207,3796.8,3796.7,0.555]
[1717316947823,1.10457609,3796.8,3796.7,0.555]
[1717316948427,1.10457609,3796.8,3796.7,3.18886]
[1717316948627,1.10457609,3796.9,3796.7,3.18886]
[1717316948893,1.10457609,3796.9,3796.8,0.555]
[1717316949081,1.10457609,3796.9,3796.8,1.111196]
[1717316949441,1.10457609,3797.0,3796.9,2.63372]
[1717316949648,1.10457609,3797.0,3796.9,3.18872]
[1717316949846,1.38270347,3797.1,3796.9,3.18872]
[1717316950224,0.82845069,3797.0,3796.9,3.18872]
[1717316950450,1.10471237,3797.1,3796.9,3.8005216]
[1717316950666,1.10471237,3797.1,3797.0,0.555]
[1717316952968,1.10471237,3797.2,3797.1,2.63358]
[1717316953168,1.10471237,3797.2,3797.1,3.18858]
[1717316953364,1.10471237,3797.2,3797.1,3.56861816]
[1717316953665,1.38084991,3797.3,3797.1,3.56861816]
[1717316954276,1.10461477,3797.2,3797.1,3.56861816]
[1717316954472,1.14804313,3797.2,3797.1,3.56861816]
[1717316954676,0.04342836,3797.2,3797.1,3.56861816]
[1717316954895,1.38085047,3797.3,3797.1,3.56861816]
[1717316955290,0.04342836,3797.2,3797.1,3.56861816]
[1717316955485,1.38085047,3797.3,3797.1,3.56861816]
[1717316955691,1.38085047,3797.3,3797.2,0.41804198]
[1717316955878,1.38085047,3797.3,3797.2,0.97304198]
[1717316957312,1.38085047,3797.3,3797.2,0.555]
[1717316957492,2.3541,3797.5,3796.9,0.555]
[1717316957493,2.3541,3797.2,3796.9,0.555]
[1717316957690,2.3541,3797.0,3796.9,0.555]
[1717316957858,3.73522154,3797.0,3796.9,0.555]
[1717316958362,2.3541,3797.0,3796.9,0.555]
[1717316962218,4.01112057,3797.0,3796.9,0.555]
[1717316962514,2.3541,3797.0,3796.9,0.555]
[1717316963279,4.01112057,3797.0,3796.9,0.555]
[1717316963696,2.3541,3797.0,3796.9,0.555]
[1717316964092,2.3541,3797.0,3796.0,2.63434]
[1717316964282,0.82913848,3796.2,3796.0,2.63434]
[1717316964509,0.82913848,3796.2,3796.1,0.555]
[1717316964716,1.10551797,3796.2,3796.1,0.555]
[1717316964928,1.38199209,3796.3,3796.1,0.555]
[1717316965260,1.38199209,3796.3,3796.2,0.555]
[1717316965582,4.01613209,3796.3,3794.8,8.374076]
[1717316965819,0.82908543,3795.7,3795.3,2.63482]
[1717316966036,0.82908543,3795.6,3794.9,2.4977]
[1717316966332,0.82908543,3795.6,3795.5,0.555]
[1717316968288,0.82908543,3795.7,3795.5,0.555]
[1717316968487,0.82908543,3795.6,3795.4,2.63475]
[1717316968689,0.82908543,3795.6,3795.5,0.555]
[1717316969113,0.82908543,3795.7,3795.5,0.555]
[1717316969290,0.82908543,3795.7,3795.6,0.873975]
[1717316969824,0.04031961,3795.7,3795.6,0.873975]
[1717316970019,0.82908543,3795.8,3795.6,0.873975]
[1717316970626,0.04031961,3795.7,3795.6,0.873975]
[1717316970829,0.82908543,3795.8,3795.6,0.873975]
[1717316971010,0.04031961,3795.7,3795.6,0.873975]
[1717316971209,0.82908543,3795.8,3795.6,0.873975]
[1717316971432,0.82908543,3795.8,3794.9,5.4977]
[1717316971433,0.04031961,3795.7,3795.0,2.635]
[1717316971607,2.2894,3795.6,3795.1,3.0]
[1717316971802,0.04028967,3795.6,3795.5,0.555]
[1717316972738,0.82908543,3795.9,3795.5,0.555]
[1717316972891,0.04028967,3795.6,3795.3,2.63482]
[1717316973227,0.82908543,3795.8,3795.6,2.63462]
[1717316973428,0.82908543,3795.9,3795.7,0.555]
[1717316973625,0.82908543,3795.9,3795.8,0.555]
[1717316974208,1.10544724,3796.0,3795.8,0.555]
[1717316974405,0.82746061,3795.9,3795.8,0.555]
[1717316974923,0.82746061,3795.9,3795.8,0.873962]
[1717316975134,0.82746061,3796.1,3795.8,0.873962]
[1717316975333,0.82746061,3796.1,3796.0,0.555]
[1717316975534,1.10544724,3796.2,3796.0,0.555]
[1717316975866,1.10544724,3796.2,3796.1,0.555]
[1717316977791,1.10544724,3796.3,3796.1,0.555]
[1717316977991,1.10544724,3796.3,3796.2,0.555]
[1717316978221,1.38199209,3796.4,3796.2,0.555]
[1717316978602,1.38199209,3796.4,3795.6,2.63462]
[1717316978827,1.38199209,3796.4,3796.3,0.555]
[1717316981621,1.38199209,3796.4,3795.7,0.263462]
[1717316981941,0.82709077,3796.1,3795.7,0.263462]
[1717316982137,0.82709077,3796.1,3796.0,0.555]
[1717316982523,0.82709077,3796.2,3796.0,0.555]
[1717316982729,1.10278769,3796.3,3795.7,0.263462]
[1717316982730,1.10278769,3796.3,3796.1,0.555]
[1717316983028,0.8270453,3796.2,3796.1,0.555]
[1717316983199,1.10278769,3796.3,3796.1,0.555]
[1717316983800,2.63399,3796.6,3796.1,0.555]
[1717316983801,1.10278769,3796.2,3796.1,0.555]
[1717316984515,1.14331924,3796.2,3796.1,0.555]
[1717316986106,0.04053155,3796.2,3796.1,0.555]
[1717316986434,1.10278769,3796.3,3796.1,0.555]
[1717316986644,0.04053155,3796.2,3796.1,0.555]
[1717316986937,1.10278769,3796.3,3796.1,0.555]
[1717316987120,0.04053155,3796.2,3796.1,0.555]
[1717316987320,2.51913155,3796.2,3795.6,2.63462]
[1717316987528,0.82699583,3796.1,3795.9,0.555]
[1717316987702,0.82699583,3796.0,3795.9,0.555]
[1717316988116,0.86748498,3796.0,3795.9,0.555]
[1717316988642,0.04048915,3796.0,3795.9,0.555]
[1717316988813,0.86748498,3796.0,3795.9,0.555]
[1717316990634,0.04048915,3796.0,3795.9,0.555]
[1717316991635,0.04048915,3796.0,3795.7,2.63453]
[1717316991843,0.04048915,3796.0,3795.9,0.555]
[1717316992002,0.86748498,3796.0,3795.9,0.555]
[1717316992417,0.04048915,3796.0,3795.7,2.63453]
[1717316992621,0.82699583,3796.2,3795.9,0.555]
[1717316992950,0.82699583,3796.2,3796.1,0.555]
[1717316993245,1.10278769,3796.2,3796.1,0.555]
[1717316994055,1.10278769,3796.3,3796.1,0.555]
[1717316994345,0.82691972,3796.2,3795.9,2.63436]
[1717316994547,0.82691972,3796.2,3796.1,0.555]
[1717316994723,0.82691972,3796.2,3796.0,0.263436]
[1717316994925,0.82691972,3796.2,3796.1,0.555]
[1717316996039,0.82691972,3796.2,3796.1,0.873936]
[1717316996459,0.82691972,3796.3,3796.1,0.873936]
[1717316996616,0.82691972,3796.3,3796.2,0.555]
[1717316996819,0.82691972,3796.3,3796.2,0.9058296]
[1717316997258,1.10278769,3796.4,3796.2,0.9058296]
[1717316997658,0.82713378,3796.3,3796.2,0.9058296]
[1717316998141,0.82713378,3796.4,3796.2,0.9058296]
[1717316998458,0.82713378,3796.4,3796.3,0.555]
[1717316999107,0.82713378,3796.5,3796.4,2.63407]
[1717316999250,0.82713378,3796.5,3796.4,3.18907]
[1717316999462,0.04056717,3796.5,3796.4,3.57846036]
[1717316999771,0.82713378,3796.7,3796.4,3.57846036]
[1717316999949,0.04065387,3796.5,3796.4,3.02346036]
[1717317000118,0.04065387,3796.5,3796.4,3.57846036]
[1717317001164,0.86778765,3796.5,3796.4,3.57846036]
[1717317003155,0.04065387,3796.5,3796.4,3.57846036]
[1717317004281,0.86862046,3796.5,3796.4,3.57846036]
[1717317004424,0.04065387,3796.5,3796.4,3.57846036]
[1717317004626,0.86862046,3796.5,3796.4,3.57846036]
[1717317004845,0.04065387,3796.5,3796.4,3.57846036]
[1717317017192,0.04065387,3796.5,3796.4,11.67773036]
[1717317017478,2.2866,3797.6,3797.3,2.63342]
[1717317017646,2.2866,3797.6,3797.5,0.555]
[1717317018387,2.2866,3797.8,3797.6,2.63324]
[1717317018593,2.2866,3797.8,3797.7,0.555]
[1717317020379,2.2866,3797.8,3797.6,2.63324]
[1717317020595,2.2866,3797.8,3797.7,0.555]
[1717317021889,2.2866,3797.8,3796.8,3.0]
[1717317022053,2.63304,3797.9,3797.4,0.555]
[1717317022054,2.397,3797.6,3797.4,0.555]
[1717317022561,2.397,3797.6,3797.0,0.555]
[1717317022759,2.397,3797.5,3797.0,0.555]
[1717317023483,2.397,3797.4,3797.0,0.555]
[1717317024253,2.397,3797.4,3797.2,0.555]
[1717317026395,3.49899187,3797.4,3797.2,0.555]
[1717317027395,2.397,3797.4,3797.2,0.555]
[1717317028301,2.397,3797.4,3796.5,2.63396]
[1717317028475,2.397,3797.4,3797.1,0.555]
[1717317028677,2.397,3797.2,3797.1,0.555]
[1717317030298,2.397,3797.2,3796.5,2.63396]
[1717317030499,3.49899187,3797.2,3797.1,0.555]
[1717317031882,2.397,3797.2,3797.1,0.555]
[1717317032408,5.03051,3797.2,3797.1,0.555]
[1717317032993,6.13301942,3797.2,3797.1,0.555]
[1717317033718,5.03051,3797.2,3797.1,0.555]
[1717317034210,6.40795496,3797.2,3797.1,0.555]
[1717317035699,6.4091799,3797.2,3797.1,0.555]
[1717317035889,5.03051,3797.2,3797.1,0.555]
[1717317036414,6.4091799,3797.2,3797.1,0.555]
[1717317039909,3.7756699,3797.2,3797.1,0.555]
[1717317040116,1.3786699,3797.2,3797.1,0.555]
[1717317041200,6.68471388,3797.5,3797.1,0.555]
[1717317041401,1.65440388,3797.5,3797.3,0.555]
[1717317041578,1.38006238,3797.4,3797.3,0.555]
[1717317041774,1.65440388,3797.6,3797.3,0.555]